[Event "Titled Tuesday Blitz December 20 Late 2022"]
[White "Aghasiyev, Kamal"]
[Black "Arnold, Ken"]
[WhiteFideId "13402854"]
[BlackFideId "2056836"]
[WhiteElo "2341"]
[BlackElo "2371"]
[Result "1-0"]
[Round "11"]
[TimeControl "180+1"]
[Date "2022.12.21"]
[WhiteClock "0:00:24"]
[BlackClock "0:00:02"]

1. d4 {[%clk 0:02:59]}  d5 {[%clk 0:02:59]} 2. c4 {[%clk 0:02:55]}  c6 {[%clk 0:02:59]} 3. Nf3 {[%clk 0:02:46]}  Nf6 {[%clk 0:02:59]} 4. e3 {[%clk 0:02:43]}  Bg4 {[%clk 0:02:55]} 5. h3 {[%clk 0:02:36]}  Bxf3 {[%clk 0:02:55]} 6. Qxf3 {[%clk 0:02:36]}  e6 {[%clk 0:02:55]} 7. Bd3 {[%clk 0:02:34]}  Nbd7 {[%clk 0:02:54]} 8. O-O {[%clk 0:02:34]}  Bd6 {[%clk 0:02:54]} 9. Nc3 {[%clk 0:02:32]}  O-O {[%clk 0:02:47]} 10. cxd5 {[%clk 0:02:25]}  exd5 {[%clk 0:02:45]} 11. Bd2 {[%clk 0:02:21]}  Re8 {[%clk 0:02:44]} 12. Rab1 {[%clk 0:02:21]}  a5 {[%clk 0:02:41]} 13. Rfe1 {[%clk 0:02:15]}  Qc7 {[%clk 0:02:29]} 14. g4 {[%clk 0:02:07]}  h6 {[%clk 0:02:21]} 15. h4 {[%clk 0:02:07]}  Bb4 {[%clk 0:02:14]} 16. Rbc1 {[%clk 0:01:47]}  Bxc3 {[%clk 0:02:12]} 17. Bxc3 {[%clk 0:01:43]}  Ne4 {[%clk 0:02:12]} 18. Kg2 {[%clk 0:01:37]}  Re6 {[%clk 0:02:07]} 19. Bxe4 {[%clk 0:01:37]}  Rxe4 {[%clk 0:02:04]} 20. Rg1 {[%clk 0:01:37]}  Nf6 {[%clk 0:02:01]} 21. Kf1 {[%clk 0:01:37]}  Nh7 {[%clk 0:00:44]} 22. Qg3 {[%clk 0:01:29]}  Qxg3 {[%clk 0:00:36]} 23. Rxg3 {[%clk 0:01:27]}  a4 {[%clk 0:00:29]} 24. Bd2 {[%clk 0:00:58]}  Rae8 {[%clk 0:00:25]} 25. Rc5 {[%clk 0:00:53]}  R4e6 {[%clk 0:00:21]} 26. Ra5 {[%clk 0:00:50]}  b5 {[%clk 0:00:20]} 27. Ra6 {[%clk 0:00:44]}  Nf6 {[%clk 0:00:19]} 28. f3 {[%clk 0:00:42]}  h5 {[%clk 0:00:19]} 29. g5 {[%clk 0:00:37]}  Nd7 {[%clk 0:00:18]} 30. Kf2 {[%clk 0:00:37]}  g6 {[%clk 0:00:17]} 31. Rg1 {[%clk 0:00:37]}  Rb8 {[%clk 0:00:17]} 32. Rc1 {[%clk 0:00:36]}  Nb6 {[%clk 0:00:17]} 33. b3 {[%clk 0:00:36]}  axb3 {[%clk 0:00:17]} 34. axb3 {[%clk 0:00:36]}  Kh7 {[%clk 0:00:09]} 35. Ba5 {[%clk 0:00:35]}  Ra8 {[%clk 0:00:09]} 36. Rxa8 {[%clk 0:00:28]}  Nxa8 {[%clk 0:00:09]} 37. Ra1 {[%clk 0:00:27]}  Re7 {[%clk 0:00:07]} 38. Bd8 {[%clk 0:00:25]}  Re8 {[%clk 0:00:02]} 39. Rxa8 {[%clk 0:00:24]} 1-0


[Site "https://www.chess.com"]

[Event "Titled Tuesday Blitz December 20 Late 2022"]
[White "Ansh M Shah"]
[Black "Fiorito, Francisco"]
[WhiteFideId "25033379"]
[BlackFideId "180165"]
[WhiteElo "2431"]
[BlackElo "2571"]
[Result "0-1"]
[Round "11"]
[TimeControl "180+1"]
[Date "2022.12.21"]
[WhiteClock "0:00:01"]
[BlackClock "0:00:13"]

1. d4 {[%clk 0:03:00]}  Nf6 {[%clk 0:02:58]} 2. c4 {[%clk 0:03:01]}  g6 {[%clk 0:02:57]} 3. h4 {[%clk 0:03:02]}  h5 {[%clk 0:02:57]} 4. Nc3 {[%clk 0:03:02]}  d5 {[%clk 0:02:57]} 5. Bg5 {[%clk 0:03:01]}  dxc4 {[%clk 0:02:56]} 6. e4 {[%clk 0:03:01]}  Bg7 {[%clk 0:02:52]} 7. Bxc4 {[%clk 0:03:02]}  c6 {[%clk 0:02:48]} 8. Nf3 {[%clk 0:02:44]}  O-O {[%clk 0:02:45]} 9. Ne5 {[%clk 0:02:44]}  Nbd7 {[%clk 0:02:41]} 10. f3 {[%clk 0:02:34]}  Qb6 {[%clk 0:02:35]} 11. Qb3 {[%clk 0:02:29]}  Qxb3 {[%clk 0:02:19]} 12. Bxb3 {[%clk 0:02:30]}  e6 {[%clk 0:02:10]} 13. O-O-O {[%clk 0:02:15]}  a5 {[%clk 0:02:05]} 14. Na4 {[%clk 0:02:02]}  b5 {[%clk 0:01:58]} 15. Nc3 {[%clk 0:01:16]}  a4 {[%clk 0:01:54]} 16. Bc2 {[%clk 0:01:16]}  Bb7 {[%clk 0:01:49]} 17. Kb1 {[%clk 0:01:04]}  Rfc8 {[%clk 0:01:49]} 18. Rd2 {[%clk 0:00:56]}  a3 {[%clk 0:01:38]} 19. b3 {[%clk 0:00:53]}  Ba6 {[%clk 0:01:37]} 20. Ne2 {[%clk 0:00:32]}  Nxe5 {[%clk 0:01:27]} 21. dxe5 {[%clk 0:00:32]}  Nh7 {[%clk 0:01:27]} 22. Bf4 {[%clk 0:00:31]}  c5 {[%clk 0:01:26]} 23. Rhd1 {[%clk 0:00:25]}  Nf8 {[%clk 0:01:25]} 24. Bg3 {[%clk 0:00:18]}  b4 {[%clk 0:01:25]} 25. f4 {[%clk 0:00:18]}  Rab8 {[%clk 0:01:23]} 26. Bd3 {[%clk 0:00:17]}  c4 {[%clk 0:01:22]} 27. bxc4 {[%clk 0:00:17]}  Bxc4 {[%clk 0:01:22]} 28. Bxc4 {[%clk 0:00:18]}  Rxc4 {[%clk 0:01:23]} 29. Rd4 {[%clk 0:00:17]}  Rc7 {[%clk 0:01:20]} 30. Nc1 {[%clk 0:00:15]}  Rbc8 {[%clk 0:01:18]} 31. Be1 {[%clk 0:00:13]}  Rc2 {[%clk 0:01:16]} 32. R4d2 {[%clk 0:00:08]}  R2c4 {[%clk 0:01:12]} 33. Rd4 {[%clk 0:00:08]}  g5 {[%clk 0:01:08]} 34. hxg5 {[%clk 0:00:08]}  Ng6 {[%clk 0:01:08]} 35. g3 {[%clk 0:00:08]}  h4 {[%clk 0:01:08]} 36. Rd8+ {[%clk 0:00:04]}  Rxd8 {[%clk 0:01:07]} 37. Rxd8+ {[%clk 0:00:05]}  Kh7 {[%clk 0:01:07]} 38. f5 {[%clk 0:00:06]}  Nxe5 {[%clk 0:01:03]} 39. f6 {[%clk 0:00:06]}  Bh8 {[%clk 0:01:04]} 40. gxh4 {[%clk 0:00:05]}  Nf3 {[%clk 0:01:03]} 41. Bf2 {[%clk 0:00:04]}  Rxe4 {[%clk 0:01:00]} 42. Nd3 {[%clk 0:00:04]}  Re2 {[%clk 0:00:38]} 43. Bc5 {[%clk 0:00:04]}  Nd2+ {[%clk 0:00:38]} 44. Kc2 {[%clk 0:00:03]}  Ne4+ {[%clk 0:00:38]} 45. Kd1 {[%clk 0:00:04]}  Rxa2 {[%clk 0:00:37]} 46. Bxb4 {[%clk 0:00:03]}  Ra1+ {[%clk 0:00:23]} 47. Kc2 {[%clk 0:00:03]}  Nxf6 {[%clk 0:00:12]} 48. gxf6 {[%clk 0:00:02]}  Bxf6 {[%clk 0:00:13]} 49. Kb3 {[%clk 0:00:03]}  Bxd8 {[%clk 0:00:12]} 50. Bxa3 {[%clk 0:00:02]}  Rh1 {[%clk 0:00:13]} 51. Kc4 {[%clk 0:00:01]}  Rxh4+ {[%clk 0:00:12]} 52. Kc3 {[%clk 0:00:02]}  Rh3 {[%clk 0:00:12]} 53. Kc4 {[%clk 0:00:01]}  f5 {[%clk 0:00:12]} 54. Bd6 {[%clk 0:00:01]}  Bf6 {[%clk 0:00:12]} 55. Nf4 {[%clk 0:00:01]}  Rh4 {[%clk 0:00:13]} 0-1


[Site "https://www.chess.com"]

[Event "Titled Tuesday Blitz December 20 Late 2022"]
[White "ArchibaldCerveza29"]
[Black "Sanchez, Robert"]
[BlackFideId "2034360"]
[WhiteElo "2441"]
[BlackElo "2380"]
[Result "1-0"]
[Round "11"]
[TimeControl "180+1"]
[Date "2022.12.21"]
[WhiteClock "0:02:16"]
[BlackClock "0:01:09"]

1. d4 {[%clk 0:03:00]}  Nf6 {[%clk 0:02:59]} 2. c4 {[%clk 0:03:01]}  e6 {[%clk 0:02:59]} 3. Nc3 {[%clk 0:03:01]}  Bb4 {[%clk 0:03:00]} 4. f3 {[%clk 0:03:01]}  d5 {[%clk 0:02:59]} 5. a3 {[%clk 0:03:01]}  Be7 {[%clk 0:02:58]} 6. e4 {[%clk 0:03:00]}  dxe4 {[%clk 0:02:58]} 7. fxe4 {[%clk 0:03:00]}  e5 {[%clk 0:02:59]} 8. d5 {[%clk 0:03:00]}  Bc5 {[%clk 0:02:59]} 9. Nf3 {[%clk 0:03:00]}  a5 {[%clk 0:02:50]} 10. Nxe5 {[%clk 0:02:54]}  Qe7 {[%clk 0:02:49]} 11. Bf4 {[%clk 0:02:51]}  Nbd7 {[%clk 0:02:35]} 12. Nxd7 {[%clk 0:02:51]}  Nxe4 {[%clk 0:02:33]} 13. Ne5 {[%clk 0:02:39]}  Nxc3 {[%clk 0:02:30]} 14. bxc3 {[%clk 0:02:40]}  f6 {[%clk 0:02:14]} 15. Bd3 {[%clk 0:02:40]}  fxe5 {[%clk 0:02:13]} 16. Qh5+ {[%clk 0:02:39]}  Kd7 {[%clk 0:01:52]} 17. Bg5 {[%clk 0:02:21]}  g6 {[%clk 0:01:20]} 18. Qh3+ {[%clk 0:02:15]}  Ke8 {[%clk 0:01:11]} 19. Bxe7 {[%clk 0:02:15]}  Bxh3 {[%clk 0:01:09]} 20. Bxc5 {[%clk 0:02:16]}  Bxg2 {[%clk 0:01:10]} 21. Rg1 {[%clk 0:02:16]}  e4 {[%clk 0:01:09]} 1-0


[Site "https://www.chess.com"]

[Event "Titled Tuesday Blitz December 20 Late 2022"]
[White "Battlecruiser_Operational"]
[Black "Marchesich, Giovanni"]
[BlackFideId "2824790"]
[WhiteElo "2400"]
[BlackElo "2200"]
[Result "1-0"]
[Round "11"]
[TimeControl "180+1"]
[Date "2022.12.21"]
[WhiteClock "0:00:04"]
[BlackClock "0:00:01"]

1. e4 {[%clk 0:02:59]}  e5 {[%clk 0:02:57]} 2. Nf3 {[%clk 0:02:59]}  d5 {[%clk 0:02:58]} 3. d3 {[%clk 0:02:55]}  dxe4 {[%clk 0:02:57]} 4. dxe4 {[%clk 0:02:56]}  Qxd1+ {[%clk 0:02:57]} 5. Kxd1 {[%clk 0:02:57]}  f6 {[%clk 0:02:58]} 6. Be3 {[%clk 0:02:56]}  Be6 {[%clk 0:02:57]} 7. Nbd2 {[%clk 0:02:56]}  Nd7 {[%clk 0:02:58]} 8. Bc4 {[%clk 0:02:56]}  Kf7 {[%clk 0:02:54]} 9. Ke2 {[%clk 0:02:51]}  c6 {[%clk 0:02:54]} 10. a4 {[%clk 0:02:50]}  Bc5 {[%clk 0:02:53]} 11. a5 {[%clk 0:02:45]}  Bxe3 {[%clk 0:02:51]} 12. fxe3 {[%clk 0:02:46]}  Ne7 {[%clk 0:02:45]} 13. Rhd1 {[%clk 0:02:42]}  Rhd8 {[%clk 0:02:38]} 14. b4 {[%clk 0:02:40]}  Ng6 {[%clk 0:02:16]} 15. Ra3 {[%clk 0:02:21]}  Ke7 {[%clk 0:02:16]} 16. Rd3 {[%clk 0:02:18]}  Ndf8 {[%clk 0:02:16]} 17. Bxe6 {[%clk 0:02:08]}  Nxe6 {[%clk 0:02:15]} 18. Nb3 {[%clk 0:02:06]}  Rxd3 {[%clk 0:02:11]} 19. cxd3 {[%clk 0:02:07]}  Rd8 {[%clk 0:02:10]} 20. Rc1 {[%clk 0:02:05]}  a6 {[%clk 0:01:28]} 21. g3 {[%clk 0:02:00]}  Ngf8 {[%clk 0:01:28]} 22. d4 {[%clk 0:01:55]}  exd4 {[%clk 0:01:24]} 23. exd4 {[%clk 0:01:56]}  Nc7 {[%clk 0:01:05]} 24. Ke3 {[%clk 0:01:48]}  Nb5 {[%clk 0:01:05]} 25. Nc5 {[%clk 0:01:45]}  Rb8 {[%clk 0:01:03]} 26. Nh4 {[%clk 0:01:35]}  g6 {[%clk 0:01:03]} 27. Nf3 {[%clk 0:01:35]}  Ne6 {[%clk 0:01:02]} 28. h4 {[%clk 0:01:07]}  Nxc5 {[%clk 0:00:52]} 29. bxc5 {[%clk 0:01:08]}  Rd8 {[%clk 0:00:50]} 30. g4 {[%clk 0:00:50]}  h6 {[%clk 0:00:46]} 31. Kd3 {[%clk 0:00:35]}  Rd7 {[%clk 0:00:42]} 32. Rh1 {[%clk 0:00:25]}  Nc7 {[%clk 0:00:41]} 33. Kc4 {[%clk 0:00:21]}  Ne6 {[%clk 0:00:24]} 34. d5 {[%clk 0:00:20]}  Nf4 {[%clk 0:00:24]} 35. d6+ {[%clk 0:00:14]}  Kf7 {[%clk 0:00:24]} 36. g5 {[%clk 0:00:13]}  h5 {[%clk 0:00:20]} 37. Rb1 {[%clk 0:00:11]}  Ke6 {[%clk 0:00:18]} 38. Nd4+ {[%clk 0:00:10]}  Ke5 {[%clk 0:00:17]} 39. Rf1 {[%clk 0:00:09]}  fxg5 {[%clk 0:00:11]} 40. hxg5 {[%clk 0:00:09]}  h4 {[%clk 0:00:11]} 41. Nf3+ {[%clk 0:00:08]}  Kxe4 {[%clk 0:00:11]} 42. Nxh4 {[%clk 0:00:08]}  Nd5 {[%clk 0:00:06]} 43. Rf8 {[%clk 0:00:04]}  Ne3+ {[%clk 0:00:05]} 44. Kb4 {[%clk 0:00:04]}  Nd5+ {[%clk 0:00:04]} 45. Kb3 {[%clk 0:00:04]}  Rh7 {[%clk 0:00:03]} 46. Nxg6 {[%clk 0:00:04]}  Rh3+ {[%clk 0:00:03]} 47. Kb2 {[%clk 0:00:05]}  Kd3 {[%clk 0:00:02]} 48. Nf4+ {[%clk 0:00:03]}  Nxf4 {[%clk 0:00:02]} 49. Rxf4 {[%clk 0:00:04]}  Rg3 {[%clk 0:00:02]} 50. d7 {[%clk 0:00:04]}  Rg2+ {[%clk 0:00:01]} 51. Kb3 {[%clk 0:00:04]} 1-0


[Site "https://www.chess.com"]

[Event "Titled Tuesday Blitz December 20 Late 2022"]
[White "Biernacki, Mark"]
[Black "White, John S."]
[WhiteFideId "2082322"]
[BlackFideId "2502348"]
[WhiteElo "1970"]
[BlackElo "1973"]
[Result "1-0"]
[Round "11"]
[TimeControl "180+1"]
[Date "2022.12.21"]
[WhiteClock "0:02:03"]
[BlackClock "0:01:56"]

1. c4 {[%clk 0:03:00]}  c5 {[%clk 0:02:58]} 2. Nc3 {[%clk 0:03:01]}  Nc6 {[%clk 0:02:57]} 3. Nf3 {[%clk 0:03:01]}  g6 {[%clk 0:02:57]} 4. g3 {[%clk 0:03:02]}  Bg7 {[%clk 0:02:56]} 5. Bg2 {[%clk 0:03:02]}  d6 {[%clk 0:02:56]} 6. O-O {[%clk 0:03:02]}  e6 {[%clk 0:02:54]} 7. e3 {[%clk 0:02:47]}  Nge7 {[%clk 0:02:52]} 8. d4 {[%clk 0:02:48]}  cxd4 {[%clk 0:02:50]} 9. exd4 {[%clk 0:02:48]}  d5 {[%clk 0:02:49]} 10. cxd5 {[%clk 0:02:43]}  exd5 {[%clk 0:02:48]} 11. Bg5 {[%clk 0:02:40]}  Bf5 {[%clk 0:02:43]} 12. Re1 {[%clk 0:02:34]}  O-O {[%clk 0:02:40]} 13. Nxd5 {[%clk 0:02:26]}  Qxd5 {[%clk 0:02:28]} 14. Bxe7 {[%clk 0:02:26]}  Nxe7 {[%clk 0:02:25]} 15. Rxe7 {[%clk 0:02:25]}  Be6 {[%clk 0:02:15]} 16. Ne5 {[%clk 0:02:19]}  Bf6 {[%clk 0:02:08]} 17. Bxd5 {[%clk 0:02:15]}  Bxd5 {[%clk 0:02:06]} 18. Rd7 {[%clk 0:02:11]}  Bxe5 {[%clk 0:02:04]} 19. Rxd5 {[%clk 0:02:07]}  Bg7 {[%clk 0:02:04]} 20. Rd7 {[%clk 0:02:06]}  b6 {[%clk 0:02:04]} 21. Qf3 {[%clk 0:02:05]}  Rad8 {[%clk 0:02:02]} 22. Rxd8 {[%clk 0:02:05]}  Rxd8 {[%clk 0:02:01]} 23. d5 {[%clk 0:02:06]}  Bxb2 {[%clk 0:02:00]} 24. Re1 {[%clk 0:02:04]}  Kg7 {[%clk 0:01:56]} 25. Re7 {[%clk 0:02:04]}  Bf6 {[%clk 0:01:56]} 26. Rxa7 {[%clk 0:02:03]} 1-0


[Site "https://www.chess.com"]

[Event "Titled Tuesday Blitz December 20 Late 2022"]
[White "Bjelobrk, Igor"]
[Black "Kaplan, Avi Harrison"]
[WhiteFideId "4300726"]
[BlackFideId "30934559"]
[WhiteElo "2669"]
[BlackElo "2453"]
[Result "1-0"]
[Round "11"]
[TimeControl "180+1"]
[Date "2022.12.21"]
[WhiteClock "0:00:49"]
[BlackClock "0:00:01"]

1. Nf3 {[%clk 0:03:00]}  c5 {[%clk 0:02:59]} 2. c4 {[%clk 0:02:58]}  Nc6 {[%clk 0:02:58]} 3. d4 {[%clk 0:02:58]}  cxd4 {[%clk 0:02:54]} 4. Nxd4 {[%clk 0:02:59]}  g6 {[%clk 0:02:47]} 5. e4 {[%clk 0:02:56]}  Bg7 {[%clk 0:02:46]} 6. Be3 {[%clk 0:02:55]}  d6 {[%clk 0:02:45]} 7. Nc3 {[%clk 0:02:55]}  Bd7 {[%clk 0:02:46]} 8. Be2 {[%clk 0:02:53]}  Nf6 {[%clk 0:02:46]} 9. O-O {[%clk 0:02:53]}  O-O {[%clk 0:02:45]} 10. Qd2 {[%clk 0:02:49]}  a6 {[%clk 0:02:45]} 11. Rfe1 {[%clk 0:02:40]}  Rc8 {[%clk 0:02:44]} 12. b3 {[%clk 0:02:34]}  Nxd4 {[%clk 0:02:20]} 13. Bxd4 {[%clk 0:02:33]}  Bc6 {[%clk 0:02:20]} 14. Bd3 {[%clk 0:02:31]}  Qc7 {[%clk 0:02:20]} 15. Nd5 {[%clk 0:02:30]}  Nxd5 {[%clk 0:02:17]} 16. Bxg7 {[%clk 0:02:29]}  Kxg7 {[%clk 0:02:15]} 17. exd5 {[%clk 0:02:29]}  Be8 {[%clk 0:02:14]} 18. h4 {[%clk 0:02:29]}  b5 {[%clk 0:02:13]} 19. h5 {[%clk 0:02:28]}  bxc4 {[%clk 0:02:10]} 20. bxc4 {[%clk 0:02:27]}  Qd7 {[%clk 0:01:52]} 21. Re3 {[%clk 0:02:25]}  Qg4 {[%clk 0:01:34]} 22. hxg6 {[%clk 0:02:21]}  hxg6 {[%clk 0:01:34]} 23. Rxe7 {[%clk 0:02:21]}  Rh8 {[%clk 0:01:34]} 24. Qc3+ {[%clk 0:02:06]}  Kg8 {[%clk 0:01:31]} 25. Rae1 {[%clk 0:02:00]}  Ba4 {[%clk 0:01:14]} 26. Qf6 {[%clk 0:01:51]}  Rh7 {[%clk 0:01:14]} 27. R1e3 {[%clk 0:01:28]}  Rb8 {[%clk 0:00:53]} 28. Rh3 {[%clk 0:00:58]}  Qd1+ {[%clk 0:00:28]} 29. Kh2 {[%clk 0:00:55]}  Rxh3+ {[%clk 0:00:27]} 30. gxh3 {[%clk 0:00:55]}  Be8 {[%clk 0:00:05]} 31. Bxg6 {[%clk 0:00:50]}  Rb1 {[%clk 0:00:02]} 32. Bxf7+ {[%clk 0:00:49]}  Kh7 {[%clk 0:00:01]} 33. Qg6+ {[%clk 0:00:48]}  Kh8 {[%clk 0:00:01]} 34. Qg8# {[%clk 0:00:49]} 1-0


[Site "https://www.chess.com"]

[Event "Titled Tuesday Blitz December 20 Late 2022"]
[White "Bryant, Todd"]
[Black "Berezin, Viktor"]
[WhiteFideId "2031299"]
[BlackFideId "14107872"]
[WhiteElo "2337"]
[BlackElo "2310"]
[Result "0-1"]
[Round "11"]
[TimeControl "180+1"]
[Date "2022.12.21"]
[WhiteClock "0:00:06"]
[BlackClock "0:00:45"]

1. e4 {[%clk 0:03:00]}  c6 {[%clk 0:02:59]} 2. d4 {[%clk 0:03:00]}  d5 {[%clk 0:03:00]} 3. f3 {[%clk 0:03:00]}  g6 {[%clk 0:02:58]} 4. Nc3 {[%clk 0:02:57]}  Bg7 {[%clk 0:02:58]} 5. e5 {[%clk 0:02:57]}  f6 {[%clk 0:02:58]} 6. f4 {[%clk 0:02:57]}  Nh6 {[%clk 0:02:55]} 7. Be3 {[%clk 0:02:57]}  O-O {[%clk 0:02:53]} 8. Qd2 {[%clk 0:02:57]}  Ng4 {[%clk 0:02:50]} 9. O-O-O {[%clk 0:02:57]}  Nxe3 {[%clk 0:02:49]} 10. Qxe3 {[%clk 0:02:58]}  b5 {[%clk 0:02:47]} 11. Kb1 {[%clk 0:02:54]}  b4 {[%clk 0:02:46]} 12. Nce2 {[%clk 0:02:54]}  a5 {[%clk 0:02:44]} 13. Ng3 {[%clk 0:02:45]}  a4 {[%clk 0:02:43]} 14. h4 {[%clk 0:02:44]}  b3 {[%clk 0:02:42]} 15. cxb3 {[%clk 0:02:37]}  axb3 {[%clk 0:02:42]} 16. Qxb3 {[%clk 0:02:38]}  fxe5 {[%clk 0:02:36]} 17. fxe5 {[%clk 0:02:33]}  Rf2 {[%clk 0:02:16]} 18. h5 {[%clk 0:02:15]}  Na6 {[%clk 0:02:09]} 19. hxg6 {[%clk 0:02:07]}  h6 {[%clk 0:02:07]} 20. Qe3 {[%clk 0:01:27]}  Qf8 {[%clk 0:01:36]} 21. Nf3 {[%clk 0:01:26]}  Bf5+ {[%clk 0:01:35]} 22. Nxf5 {[%clk 0:01:19]}  Nb4 {[%clk 0:01:27]} 23. Nxg7 {[%clk 0:00:17]}  Rxb2+ {[%clk 0:01:05]} 24. Kxb2 {[%clk 0:00:16]}  Rxa2+ {[%clk 0:01:05]} 25. Kb1 {[%clk 0:00:16]}  Qa8 {[%clk 0:01:04]} 26. Qc3 {[%clk 0:00:15]}  Qa4 {[%clk 0:00:52]} 27. Bd3 {[%clk 0:00:11]}  Ra3 {[%clk 0:00:48]} 28. Qc1 {[%clk 0:00:05]}  Rb3+ {[%clk 0:00:45]} 29. Qb2 {[%clk 0:00:06]}  Qa2+ {[%clk 0:00:45]} 30. Kc1 {[%clk 0:00:06]}  Qxb2# {[%clk 0:00:45]} 0-1


[Site "https://www.chess.com"]

[Event "Titled Tuesday Blitz December 20 Late 2022"]
[White "Burke, Paul"]
[Black "Vargas, Mauricio"]
[WhiteFideId "2605767"]
[BlackFideId "4404572"]
[WhiteElo "1774"]
[BlackElo "2025"]
[Result "0-1"]
[Round "11"]
[TimeControl "180+1"]
[Date "2022.12.21"]
[WhiteClock "0:01:21"]
[BlackClock "0:01:03"]

1. e4 {[%clk 0:03:00]}  d5 {[%clk 0:02:58]} 2. exd5 {[%clk 0:03:00]}  Qxd5 {[%clk 0:02:59]} 3. d4 {[%clk 0:03:00]}  Qa5+ {[%clk 0:02:58]} 4. c3 {[%clk 0:02:59]}  c6 {[%clk 0:02:58]} 5. Nf3 {[%clk 0:02:59]}  Bg4 {[%clk 0:02:58]} 6. Be2 {[%clk 0:02:59]}  Nf6 {[%clk 0:02:57]} 7. Be3 {[%clk 0:02:59]}  e6 {[%clk 0:02:57]} 8. h3 {[%clk 0:02:56]}  Bf5 {[%clk 0:02:56]} 9. Nbd2 {[%clk 0:02:53]}  Bd6 {[%clk 0:02:51]} 10. Nc4 {[%clk 0:02:53]}  Qc7 {[%clk 0:02:49]} 11. Nxd6+ {[%clk 0:02:52]}  Qxd6 {[%clk 0:02:49]} 12. O-O {[%clk 0:02:48]}  O-O {[%clk 0:02:49]} 13. Bd3 {[%clk 0:02:45]}  Nbd7 {[%clk 0:02:47]} 14. Bxf5 {[%clk 0:02:44]}  exf5 {[%clk 0:02:46]} 15. Qc2 {[%clk 0:02:36]}  Ne4 {[%clk 0:02:41]} 16. Nd2 {[%clk 0:02:34]}  Ndf6 {[%clk 0:02:41]} 17. Nxe4 {[%clk 0:02:33]}  Nxe4 {[%clk 0:02:38]} 18. Rad1 {[%clk 0:02:18]}  Rfe8 {[%clk 0:02:34]} 19. Rfe1 {[%clk 0:02:11]}  Re6 {[%clk 0:02:20]} 20. f3 {[%clk 0:02:09]}  Ng3 {[%clk 0:02:14]} 21. Bf2 {[%clk 0:02:09]}  f4 {[%clk 0:02:04]} 22. Rxe6 {[%clk 0:02:03]}  Qxe6 {[%clk 0:01:58]} 23. Re1 {[%clk 0:02:00]}  Qxa2 {[%clk 0:01:45]} 24. Bxg3 {[%clk 0:01:57]}  fxg3 {[%clk 0:01:44]} 25. Qe4 {[%clk 0:01:56]}  h6 {[%clk 0:01:42]} 26. Qe5 {[%clk 0:01:48]}  Qxb2 {[%clk 0:01:37]} 27. Qxg3 {[%clk 0:01:46]}  Qxc3 {[%clk 0:01:37]} 28. Re7 {[%clk 0:01:42]}  Qxd4+ {[%clk 0:01:30]} 29. Kh2 {[%clk 0:01:42]}  b5 {[%clk 0:01:25]} 30. Rb7 {[%clk 0:01:34]}  a5 {[%clk 0:01:22]} 31. Qc7 {[%clk 0:01:33]}  Qf6 {[%clk 0:01:18]} 32. Rb6 {[%clk 0:01:23]}  Re8 {[%clk 0:01:04]} 33. Rxc6 {[%clk 0:01:22]}  Qe5+ {[%clk 0:01:04]} 34. Qxe5 {[%clk 0:01:21]}  Rxe5 {[%clk 0:01:03]} 35. Ra6 {[%clk 0:01:21]}  a4 {[%clk 0:01:03]} 0-1


[Site "https://www.chess.com"]

[Event "Titled Tuesday Blitz December 20 Late 2022"]
[White "Carbone, Diego"]
[Black "Solon, Nathan"]
[WhiteFideId "3002179"]
[BlackFideId "2017229"]
[WhiteElo "2266"]
[BlackElo "2627"]
[Result "0-1"]
[Round "11"]
[TimeControl "180+1"]
[Date "2022.12.21"]
[WhiteClock "0:00:05"]
[BlackClock "0:00:53"]

1. d4 {[%clk 0:03:00]}  Nf6 {[%clk 0:02:59]} 2. c4 {[%clk 0:03:01]}  c5 {[%clk 0:02:58]} 3. d5 {[%clk 0:03:01]}  b5 {[%clk 0:02:58]} 4. cxb5 {[%clk 0:03:02]}  a6 {[%clk 0:02:57]} 5. bxa6 {[%clk 0:03:03]}  g6 {[%clk 0:02:58]} 6. Nc3 {[%clk 0:03:01]}  Bg7 {[%clk 0:02:58]} 7. e4 {[%clk 0:03:01]}  O-O {[%clk 0:02:58]} 8. e5 {[%clk 0:03:01]}  Ne8 {[%clk 0:02:58]} 9. h4 {[%clk 0:03:01]}  Bxe5 {[%clk 0:02:53]} 10. Bh6 {[%clk 0:03:01]}  Ng7 {[%clk 0:02:53]} 11. Qd2 {[%clk 0:02:59]}  Bxa6 {[%clk 0:02:45]} 12. Nf3 {[%clk 0:02:09]}  Bf6 {[%clk 0:02:45]} 13. g4 {[%clk 0:02:02]}  Bxf1 {[%clk 0:02:35]} 14. Kxf1 {[%clk 0:02:03]}  Qa5 {[%clk 0:02:32]} 15. h5 {[%clk 0:01:55]}  d6 {[%clk 0:02:20]} 16. hxg6 {[%clk 0:01:46]}  fxg6 {[%clk 0:02:21]} 17. Kg2 {[%clk 0:01:43]}  Nd7 {[%clk 0:02:14]} 18. Rae1 {[%clk 0:01:29]}  Rf7 {[%clk 0:02:04]} 19. Ng5 {[%clk 0:01:07]}  Bxg5 {[%clk 0:02:03]} 20. Bxg5 {[%clk 0:01:03]}  Raf8 {[%clk 0:02:01]} 21. Re2 {[%clk 0:00:51]}  Ne5 {[%clk 0:01:56]} 22. f4 {[%clk 0:00:41]}  Nxg4 {[%clk 0:01:48]} 23. Rxe7 {[%clk 0:00:40]}  Nf5 {[%clk 0:01:42]} 24. Rxf7 {[%clk 0:00:36]}  Rxf7 {[%clk 0:01:37]} 25. Re1 {[%clk 0:00:35]}  h6 {[%clk 0:01:28]} 26. Re8+ {[%clk 0:00:26]}  Kg7 {[%clk 0:01:28]} 27. Bd8 {[%clk 0:00:26]}  Qa6 {[%clk 0:01:20]} 28. a4 {[%clk 0:00:18]}  h5 {[%clk 0:01:03]} 29. Nb5 {[%clk 0:00:17]}  Qxa4 {[%clk 0:01:00]} 30. Qc3+ {[%clk 0:00:13]}  Nd4 {[%clk 0:00:57]} 31. Nxd4 {[%clk 0:00:13]}  Qxd4 {[%clk 0:00:53]} 32. Qxd4+ {[%clk 0:00:13]}  cxd4 {[%clk 0:00:54]} 33. Ba5 {[%clk 0:00:08]}  Ne3+ {[%clk 0:00:52]} 34. Kf3 {[%clk 0:00:08]}  Nxd5 {[%clk 0:00:53]} 35. Ke4 {[%clk 0:00:06]}  Nf6+ {[%clk 0:00:52]} 36. Kxd4 {[%clk 0:00:05]}  Nxe8 {[%clk 0:00:53]} 37. Kd5 {[%clk 0:00:05]}  Rf5+ {[%clk 0:00:52]} 38. Ke6 {[%clk 0:00:05]}  Rxa5 {[%clk 0:00:53]} 0-1


[Site "https://www.chess.com"]